[Event "Czech Youth U16 Girls 2024"]
[Site "Kouty nad Desnou"]
[Date "2024.03.11"]
[Round "3.9"]
[White "Urvalkova, Ema"]
[Black "Kavanova, Anezka"]
[Result "0-1"]
[ECO "B76"]
[WhiteElo "1496"]
[BlackElo "1661"]
[Annotator "NA RC"]
[PlyCount "60"]
[EventDate "2024.03.10"]
[EventType "swiss"]
[EventCountry "CZE"]
[SourceTitle "playchess.com"]
[Source "ChessBase"]
[SourceQuality "1"]
[TimeControl "40/5400+30:1800+30"]

1. e4 {[%emt 0:00:03]} c5 {[%emt 0:00:05]} 2. Nf3 {[%emt 0:00:08]} d6 {[%emt 0:00:03]} 3. d4 {[%emt 0:00:06]} cxd4 {[%emt 0:00:03]} 4. Nxd4 {[%emt 0:00:09]} Nf6 {[%emt 0:00:01]} 5. Nc3 {[%emt 0:00:12]} g6 {[%emt 0:00:02]} 6. Be3 {[%emt 0:00:07]} Bg7 {[%emt 0:00:03]} 7. f3 {[%emt 0:00:07]} O-O {[%emt 0:00:04]} 8. Qd2 {[%emt 0:00:08]} Nc6 {[%emt 0:00:05]} 9. O-O-O {[%emt 0:00:09]} d5 {[%emt 0:00:01]} 10. Nxc6 {[%emt 0:03:48]} bxc6 {[%emt 0:00:06]} 11. e5 {[%emt 0:11:54]} Nd7 {[%emt 0:00:14]} 12. f4 {[%emt 0:00:19]} e6 {[%emt 0:00:08]} 13. g4 {[%emt 0:00:54]} c5 {[%emt 0:00:35]} 14. Nb5 {[%emt 0:02:18]} d4 {[%emt 0:01:03]} 15. Bf2 {[%emt 0:00:23]} f6 {[%emt 0:01:18]} 16. Bg2 {[%emt 0:04:46]} Rb8 {[%emt 0:00:40]} 17. Na3 {[%emt 0:06:46]} fxe5 {[%emt 0:03:53]} 18. Bg3 {[%emt 0:00:55]} Qb6 {[%emt 0:04:18]} 19. Nc4 {[%emt 0:00:31]} Qa6 {[%emt 0:00:16]} 20. Na3 {[%emt 0:01:48]} e4 {[%emt 0:13:30]} 21. Bxe4 {[%emt 0:01:53]} c4 {[%emt 0:00:09]} 22. Be1 {[%emt 0:08:31]} c3 {[%emt 0:17:04]} 23. Qd3 {[%emt 0:01:35]} Qa4 {[%emt 0:01:26]} 24. Nb1 {[%emt 0:12:14]} Nc5 {[%emt 0:16:19]} 25. Qf3 {[%emt 0:01:18]} Qxa2 {[%emt 0:00:32]} 26. bxc3 {[%emt 0:01:14]} Rxb1+ {[%emt 0:00:32]} 27. Kd2 {[%emt 0:00:08]} dxc3+ {[%emt 0:01:19]} 28. Ke2 {[%emt 0:01:13]} Ba6+ {[%emt 0:00:14]} 29. Bd3 {[%emt 0:01:08]} Rxd1 {[%emt 0:02:39]} 30. Kxd1 {[%emt 0:00:56]} Bxd3 {[%emt 0:00:08]} 0-1

[Event "Czech Youth U16 Girls 2024"]
[Site "Kouty nad Desnou"]
[Date "2024.03.11"]
[Round "3.10"]
[White "Souralova, Jana"]
[Black "Holatova, Irena"]
[Result "1/2-1/2"]
[ECO "C26"]
[WhiteElo "1597"]
[BlackElo "1608"]
[Annotator "NA RC"]
[PlyCount "124"]
[EventDate "2024.03.10"]
[EventType "swiss"]
[EventCountry "CZE"]
[SourceTitle "playchess.com"]
[Source "ChessBase"]
[SourceQuality "1"]
[TimeControl "40/5400+30:1800+30"]

1. e4 {[%emt 0:00:03]} e5 {[%emt 0:00:05]} 2. Nc3 {[%emt 0:00:10]} Nf6 {[%emt 0:00:09]} 3. g3 {[%emt 0:01:16]} d5 {[%emt 0:00:38]} 4. Bg2 {[%emt 0:04:08]} d4 {[%emt 0:08:03]} 5. Nd5 {[%emt 0:03:50]} Be6 {[%emt 0:05:58]} 6. Nxf6+ {[%emt 0:02:41]} Qxf6 {[%emt 0:00:12]} 7. Qf3 {[%emt 0:01:19]} Qxf3 {[%emt 0:02:17]} 8. Nxf3 {[%emt 0:00:11]} f6 {[%emt 0:02:06]} 9. d3 {[%emt 0:01:05]} Nc6 {[%emt 0:00:46]} 10. O-O {[%emt 0:05:37]} O-O-O {[%emt 0:04:47]} 11. Bd2 {[%emt 0:04:26]} Bb4 {[%emt 0:04:19]} 12. Rfd1 {[%emt 0:02:37]} Bxd2 {[%emt 0:01:48]} 13. Rxd2 {[%emt 0:00:17]} Ne7 {[%emt 0:05:37]} 14. c3 {[%emt 0:04:01]} g5 {[%emt 0:01:59]} 15. cxd4 {[%emt 0:03:54]} g4 {[%emt 0:02:31]} 16. Ne1 {[%emt 0:04:51]} exd4 {[%emt 0:01:09]} 17. f4 {[%emt 0:04:04]} f5 {[%emt 0:02:22]} 18. e5 {[%emt 0:10:43]} Bd5 {[%emt 0:01:44]} 19. Nc2 {[%emt 0:01:05]} c5 {[%emt 0:02:14]} 20. Na3 {[%emt 0:07:02]} a6 {[%emt 0:03:53]} 21. Bxd5 {[%emt 0:03:56]} Nxd5 {[%emt 0:01:23]} 22. Nc4 {[%emt 0:00:16]} Kb8 {[%emt 0:03:12]} 23. Kf2 {[%emt 0:01:16]} Rhe8 {[%emt 0:02:34]} 24. Re1 {[%emt 0:02:03]} Re6 {[%emt 0:01:44]} 25. Rc2 {[%emt 0:02:39]} Nb4 {[%emt 0:02:20]} 26. Rd2 {[%emt 0:00:50]} Nxa2 {[%emt 0:01:07]} 27. Ra1 {[%emt 0:01:05]} Nb4 {[%emt 0:00:35]} 28. Nd6 {[%emt 0:02:39]} Rd7 {[%emt 0:02:37]} 29. Nxf5 {[%emt 0:02:38]} Rf7 {[%emt 0:03:21]} 30. Nd6 {[%emt 0:00:39]} Rf8 {[%emt 0:00:50]} 31. Ke2 {[%emt 0:00:22]} Rd8 {[%emt 0:01:43]} 32. Nf7 {[%emt 0:03:01]} Rd7 {[%emt 0:02:05]} 33. Ng5 {[%emt 0:00:33]} Rh6 {[%emt 0:01:13]} 34. Kf1 {[%emt 0:01:21]} Nd5 {[%emt 0:01:41]} 35. Ne4 {[%emt 0:01:22]} Ne3+ {[%emt 0:01:02]} 36. Kg1 {[%emt 0:00:58]} Rc7 {[%emt 0:02:44]} 37. Rc1 {[%emt 0:05:53]} b6 {[%emt 0:01:51]} 38. Nd6 {[%emt 0:02:22]} Rd7 {[%emt 0:03:42]} 39. Ra1 {[%emt 0:02:52]} Ra7 {[%emt 0:01:48]} 40. Rf2 {[%emt 0:07:33]} Re6 {[%emt 0:03:13]} 41. f5 {[%emt 0:32:06]} Nxf5 {[%emt 0:31:53]} 42. Rxf5 {[%emt 0:00:24]} Rae7 {[%emt 0:01:00]} 43. Rxa6 {[%emt 0:00:00]} Rxe5 {[%emt 0:00:00]} 44. Rxe5 {[%emt 0:00:00]} Rxe5 {[%emt 0:00:00]} 45. Ne4 {[%emt 0:00:00]} Kb7 {[%emt 0:00:00]} 46. Ra1 {[%emt 0:00:00]} b5 {[%emt 0:00:00]} 47. Kf2 {[%emt 0:00:00]} c4 {[%emt 0:00:00]} 48. Ke2 {[%emt 0:00:00]} c3 {[%emt 0:00:00]} 49. bxc3 {[%emt 0:00:00]} dxc3 {[%emt 0:00:00]} 50. Ra3 {[%emt 0:00:00]} Rh5 {[%emt 0:00:00]} 51. Nxc3 {[%emt 0:00:00]} Rxh2+ {[%emt 0:00:00]} 52. Kd1 {[%emt 0:00:00]} Kc6 {[%emt 0:00:00]} 53. Rb3 {[%emt 0:00:00]} Rg2 {[%emt 0:00:00]} 54. Ne2 {[%emt 0:00:00]} h5 {[%emt 0:00:00]} 55. d4 {[%emt 0:00:00]} Rh2 {[%emt 0:00:00]} 56. Kd2 {[%emt 0:00:00]} h4 {[%emt 0:00:00]} 57. gxh4 {[%emt 0:00:00]} Rxh4 {[%emt 0:00:00]} 58. Rg3 {[%emt 0:00:00]} Kd5 {[%emt 0:00:00]} 59. Nc3+ {[%emt 0:02:03]} Kc4 {[%emt 0:00:00]} 60. d5 {[%emt 0:00:33]} Kc5 {[%emt 0:00:00]} 61. Ke3 Rh3 62. Kd2 Rh4 1/2-1/2

[Event "Czech Youth U16 Girls 2024"]
[Site "Kouty nad Desnou"]
[Date "2024.03.11"]
[Round "3.11"]
[White "Archlebova, Stela"]
[Black "Dlaskova, Eliska"]
[Result "0-1"]
[ECO "C01"]
[WhiteElo "1600"]
[BlackElo "1526"]
[Annotator "NA RC"]
[PlyCount "58"]
[EventDate "2024.03.10"]
[EventType "swiss"]
[EventCountry "CZE"]
[SourceTitle "playchess.com"]
[Source "ChessBase"]
[SourceQuality "1"]
[TimeControl "40/5400+30:1800+30"]

1. e4 {[%emt 0:00:08]} e6 {[%emt 0:00:05]} 2. d4 {[%emt 0:00:20]} d5 {[%emt 0:00:07]} 3. exd5 {[%emt 0:00:09]} exd5 {[%emt 0:00:11]} 4. Nc3 {[%emt 0:00:28]} Nf6 {[%emt 0:02:00]} 5. Bg5 {[%emt 0:00:45]} Be7 {[%emt 0:05:40]} 6. Nf3 {[%emt 0:03:05]} O-O {[%emt 0:04:34]} 7. Be2 {[%emt 0:01:43]} Re8 {[%emt 0:04:18]} 8. O-O {[%emt 0:00:53]} c6 {[%emt 0:02:18]} 9. Re1 {[%emt 0:02:39]} Qc7 {[%emt 0:06:57]} 10. Bd3 {[%emt 0:02:07]} Bd7 {[%emt 0:06:53]} 11. Qd2 {[%emt 0:11:06]} Na6 {[%emt 0:04:52]} 12. Ne5 {[%emt 0:07:41]} Nb4 {[%emt 0:05:02]} 13. Nxd7 {[%emt 0:02:50]} Qxd7 {[%emt 0:06:04]} 14. Be2 {[%emt 0:03:19]} Qf5 {[%emt 0:03:08]} 15. Rac1 {[%emt 0:04:35]} c5 {[%emt 0:07:57]} 16. Bxf6 {[%emt 0:06:55]} Bxf6 {[%emt 0:02:03]} 17. dxc5 {[%emt 0:01:07]} Bg5 {[%emt 0:01:07]} 18. Qd4 {[%emt 0:06:06]} Nxc2 {[%emt 0:02:00]} 19. Rxc2 {[%emt 0:00:31]} Qxc2 {[%emt 0:01:50]} 20. Qg4 {[%emt 0:04:08]} Bd2 {[%emt 0:03:56]} 21. Rd1 {[%emt 0:07:51]} Bxc3 {[%emt 0:00:23]} 22. bxc3 {[%emt 0:02:02]} Qxe2 {[%emt 0:00:19]} 23. Qxe2 {[%emt 0:03:30]} Rxe2 {[%emt 0:00:20]} 24. a3 {[%emt 0:00:21]} Rc2 {[%emt 0:00:19]} 25. h3 {[%emt 0:00:28]} Rd8 {[%emt 0:00:33]} 26. Rd3 {[%emt 0:00:29]} f6 {[%emt 0:00:34]} 27. g3 {[%emt 0:00:25]} Kf7 {[%emt 0:01:19]} 28. Kg2 {[%emt 0:00:18]} Ke6 {[%emt 0:03:00]} 29. Kf3 {[%emt 0:00:30]} Rc8 0-1

[Event "Czech Youth U16 Girls 2024"]
[Site "Kouty nad Desnou"]
[Date "2024.03.11"]
[Round "4.1"]
[White "Dobsa, Emma"]
[Black "Brezikova, Beata"]
[Result "1-0"]
[ECO "C54"]
[WhiteElo "1750"]
[BlackElo "1804"]
[Annotator "NA RC"]
[PlyCount "75"]
[EventDate "2024.03.10"]
[EventType "swiss"]
[EventCountry "CZE"]
[SourceTitle "playchess.com"]
[Source "ChessBase"]
[SourceQuality "1"]
[TimeControl "40/5400+30:1800+30"]

1. e4 {[%emt 0:00:03]} e5 {[%emt 0:00:04]} 2. Nf3 {[%emt 0:00:04]} Nc6 {[%emt 0:00:04]} 3. Bc4 {[%emt 0:00:05]} Bc5 {[%emt 0:00:15]} 4. c3 {[%emt 0:00:04]} Nf6 {[%emt 0:00:10]} 5. d3 {[%emt 0:00:04]} O-O {[%emt 0:00:27]} 6. Nbd2 {[%emt 0:00:05]} d6 {[%emt 0:00:38]} 7. O-O {[%emt 0:00:06]} Be6 {[%emt 0:00:52]} 8. Bxe6 {[%emt 0:00:11]} fxe6 {[%emt 0:00:10]} 9. b4 {[%emt 0:00:14]} Bb6 {[%emt 0:00:35]} 10. Qb3 {[%emt 0:00:10]} Qd7 {[%emt 0:01:37]} 11. a4 {[%emt 0:00:38]} a6 {[%emt 0:00:53]} 12. Ba3 {[%emt 0:02:10]} h6 {[%emt 0:03:02]} 13. Nc4 {[%emt 0:00:37]} Rae8 {[%emt 0:07:45]} 14. Nxb6 {[%emt 0:01:49]} cxb6 {[%emt 0:00:14]} 15. b5 {[%emt 0:02:14]} Ne7 {[%emt 0:07:57]} 16. bxa6 {[%emt 0:02:26]} Ng6 {[%emt 0:05:30]} 17. Qxb6 {[%emt 0:01:40]} Ng4 {[%emt 0:06:13]} 18. axb7 {[%emt 0:06:05]} Nf4 {[%emt 0:09:47]} 19. Bxd6 {[%emt 0:07:22]} Ne2+ {[%emt 0:20:19]} 20. Kh1 {[%emt 0:00:20]} Rxf3 {[%emt 0:02:20]} 21. Qc7 {[%emt 0:06:21]} Qxc7 {[%emt 0:01:46]} 22. Bxc7 {[%emt 0:00:10]} Nxf2+ {[%emt 0:01:24]} 23. Rxf2 {[%emt 0:00:10]} Rxf2 {[%emt 0:00:17]} 24. b8=Q {[%emt 0:00:23]} Rxb8 {[%emt 0:00:26]} 25. Bxb8 {[%emt 0:00:04]} Nxc3 {[%emt 0:01:28]} 26. a5 {[%emt 0:00:47]} Rf8 {[%emt 0:01:58]} 27. Bxe5 {[%emt 0:00:09]} Nb5 {[%emt 0:00:36]} 28. Kg1 {[%emt 0:00:36]} Na7 {[%emt 0:01:06]} 29. a6 {[%emt 0:00:34]} Nc6 {[%emt 0:00:43]} 30. Bg3 {[%emt 0:00:30]} Ra8 {[%emt 0:00:53]} 31. Bf2 {[%emt 0:00:23]} Kf7 {[%emt 0:01:15]} 32. Bc5 {[%emt 0:00:40]} Ke8 {[%emt 0:00:28]} 33. Kf2 {[%emt 0:00:34]} Kd7 {[%emt 0:00:49]} 34. d4 {[%emt 0:00:12]} Ke8 {[%emt 0:00:53]} 35. a7 {[%emt 0:01:22]} Kf7 {[%emt 0:00:41]} 36. Ke3 {[%emt 0:00:42]} Kg6 {[%emt 0:00:33]} 37. d5 {[%emt 0:00:42]} exd5 {[%emt 0:00:19]} 38. Ra6 {[%emt 0:00:08]} 1-0

[Event "Czech Youth U16 Girls 2024"]
[Site "Kouty nad Desnou"]
[Date "2024.03.11"]
[Round "4.2"]
[White "Vacekova, Anita"]
[Black "Dominikova, Denisa"]
[Result "0-1"]
[ECO "C88"]
[WhiteElo "1783"]
[BlackElo "1716"]
[Annotator "NA RC"]
[PlyCount "98"]
[EventDate "2024.03.10"]
[EventType "swiss"]
[EventCountry "CZE"]
[SourceTitle "playchess.com"]
[Source "ChessBase"]
[SourceQuality "1"]
[TimeControl "40/5400+30:1800+30"]

1. e4 {[%emt 0:00:01]} e5 {[%emt 0:00:12]} 2. Nf3 {[%emt 0:00:10]} Nc6 {[%emt 0:00:14]} 3. Bb5 {[%emt 0:00:15]} a6 {[%emt 0:00:10]} 4. Ba4 {[%emt 0:00:05]} Nf6 {[%emt 0:00:12]} 5. O-O {[%emt 0:00:08]} Be7 {[%emt 0:00:07]} 6. Re1 {[%emt 0:00:07]} b5 {[%emt 0:00:11]} 7. Bb3 {[%emt 0:00:05]} d6 {[%emt 0:00:15]} 8. a4 {[%emt 0:00:15]} b4 {[%emt 0:01:27]} 9. d4 {[%emt 0:00:11]} Bg4 {[%emt 0:05:10]} 10. c3 {[%emt 0:06:51]} bxc3 {[%emt 0:04:40]} 11. bxc3 {[%emt 0:01:33]} O-O {[%emt 0:01:32]} 12. Bd5 {[%emt 0:14:02]} Qd7 {[%emt 0:12:44]} 13. dxe5 {[%emt 0:18:07]} Nxd5 {[%emt 0:03:54]} 14. exd5 {[%emt 0:03:54]} Bxf3 {[%emt 0:03:36]} 15. Qxf3 {[%emt 0:04:45]} Nxe5 {[%emt 0:00:43]} 16. Qg3 {[%emt 0:02:49]} Bf6 {[%emt 0:03:33]} 17. Nd2 {[%emt 0:02:59]} Rab8 {[%emt 0:14:00]} 18. Ne4 {[%emt 0:07:54]} Qf5 {[%emt 0:02:17]} 19. Nxf6+ {[%emt 0:10:15]} Qxf6 {[%emt 0:00:08]} 20. Bg5 {[%emt 0:00:46]} Qf5 {[%emt 0:03:49]} 21. f4 {[%emt 0:02:13]} Ng6 {[%emt 0:02:05]} 22. h4 {[%emt 0:08:55]} f6 {[%emt 0:03:57]} 23. h5 {[%emt 0:00:51]} fxg5 {[%emt 0:01:36]} 24. hxg6 {[%emt 0:00:26]} hxg6 {[%emt 0:00:52]} 25. Qxg5 {[%emt 0:04:56]} Qxf4 {[%emt 0:01:24]} 26. Qxg6 {[%emt 0:01:37]} Qf2+ {[%emt 0:01:30]} 27. Kh2 {[%emt 0:01:55]} Rf6 {[%emt 0:01:07]} 28. Re8+ {[%emt 0:00:18]} Rxe8 {[%emt 0:00:10]} 29. Qxe8+ {[%emt 0:00:02]} Kh7 {[%emt 0:02:01]} 30. Qe4+ {[%emt 0:00:28]} Kh6 {[%emt 0:11:28]} 31. Re1 {[%emt 0:00:41]} Rf4 {[%emt 0:02:23]} 32. Qe6+ {[%emt 0:01:22]} Kh7 {[%emt 0:01:30]} 33. Re3 {[%emt 0:00:41]} Rh4+ {[%emt 0:05:52]} 34. Rh3 {[%emt 0:00:11]} Qf4+ {[%emt 0:05:32]} 35. Kg1 {[%emt 0:02:50]} Rxh3 {[%emt 0:05:00]} 36. Qxh3+ {[%emt 0:00:09]} Kg6 {[%emt 0:00:40]} 37. Qe6+ {[%emt 0:00:54]} Qf6 {[%emt 0:00:28]} 38. Qe8+ {[%emt 0:00:40]} Kh6 {[%emt 0:01:10]} 39. Qc6 {[%emt 0:01:19]} Qe5 {[%emt 0:00:56]} 40. Qc4 {[%emt 0:00:34]} Qe1+ {[%emt 0:00:56]} 41. Kh2 {[%emt 0:30:20]} Qe5+ {[%emt 0:04:59]} 42. g3 {[%emt 0:00:00]} a5 {[%emt 0:00:26]} 43. Qf4+ {[%emt 0:00:00]} Kg6 {[%emt 0:03:01]} 44. Qxe5 {[%emt 0:00:00]} dxe5 {[%emt 0:00:13]} 45. Kg2 {[%emt 0:00:00]} Kf5 {[%emt 0:03:47]} 46. c4 {[%emt 0:00:00]} Ke4 {[%emt 0:06:16]} 47. Kf2 {[%emt 0:00:00]} Kd4 {[%emt 0:00:37]} 48. Kf3 {[%emt 0:00:00]} e4+ {[%emt 0:00:34]} 49. Kf4 {[%emt 0:00:00]} g5+ {[%emt 0:00:28]} 0-1

[Event "Czech Youth U16 Girls 2024"]
[Site "Kouty nad Desnou"]
[Date "2024.03.11"]
[Round "4.3"]
[White "Lackova, Ludmila"]
[Black "Zadrapova, Amalie"]
[Result "1/2-1/2"]
[ECO "E67"]
[WhiteElo "1652"]
[BlackElo "1857"]
[Annotator "NA RC"]
[PlyCount "104"]
[EventDate "2024.03.10"]
[EventType "swiss"]
[EventCountry "CZE"]
[SourceTitle "playchess.com"]
[Source "ChessBase"]
[SourceQuality "1"]
[TimeControl "40/5400+30:1800+30"]

1. d4 {[%emt 0:00:02]} Nf6 {[%emt 0:00:07]} 2. c4 {[%emt 0:00:06]} g6 {[%emt 0:00:07]} 3. Nc3 {[%emt 0:00:05]} Bg7 {[%emt 0:00:05]} 4. Nf3 {[%emt 0:00:05]} O-O {[%emt 0:00:08]} 5. g3 {[%emt 0:00:06]} d6 {[%emt 0:00:20]} 6. Bg2 {[%emt 0:00:05]} Nbd7 {[%emt 0:00:19]} 7. O-O {[%emt 0:00:10]} e5 {[%emt 0:01:01]} 8. h3 {[%emt 0:00:10]} Re8 {[%emt 0:01:49]} 9. Be3 {[%emt 0:00:23]} a5 {[%emt 0:02:20] E67: King's Indian: Fianchetto: 6...Nbd7.} 10. Rc1 {[%emt 0:01:01]} exd4 {[%emt 0:00:38]} 11. Nxd4 {[%emt 0:00:14]} Nc5 {[%emt 0:01:22]} 12. Qc2 {[%emt 0:07:35]} Bd7 {[%emt 0:04:50]} 13. b3 {[%emt 0:00:49]} Qc8 {[%emt 0:00:29]} 14. Kh2 {[%emt 0:00:42]} Ne6 {[%emt 0:02:42]} 15. Ncb5 {[%emt 0:06:36]} Nxd4 {[%emt 0:05:04]} 16. Nxd4 {[%emt 0:00:15]} Re5 {[%emt 0:02:12]} 17. Rh1 {[%emt 0:31:00]} Rh5 {[%emt 0:03:01]} 18. Kg1 {[%emt 0:00:18]} Bxh3 {[%emt 0:01:33]} 19. Bxh3 {[%emt 0:00:04]} Rxh3 {[%emt 0:00:10]} 20. Kg2 {[%emt 0:00:17]} Rxh1 {[%emt 0:00:44]} 21. Rxh1 {[%emt 0:00:08]} Ng4 {[%emt 0:01:36]} 22. Qd2 {[%emt 0:01:45]} Nxe3+ {[%emt 0:00:42]} 23. Qxe3 {[%emt 0:00:12]} Qd7 {[%emt 0:01:05]} 24. Qd3 {[%emt 0:02:57]} Re8 {[%emt 0:02:44]} 25. Rh4 {[%emt 0:03:04]} Re5 {[%emt 0:05:29]} 26. Nf3 {[%emt 0:02:09]} Qc6 {[%emt 0:04:27]} 27. Kg1 {[%emt 0:01:33]} Re7 {[%emt 0:02:24]} 28. Nd2 {[%emt 0:04:09]} f5 $17 {[%emt 0:09:56]} 29. Nf3 {[%emt 0:07:36]} Bf6 {[%emt 0:01:21]} 30. Rf4 {[%emt 0:02:28]} Kg7 {[%emt 0:07:36]} 31. g4 {[%emt 0:05:14]} Re4 {[%emt 0:07:11]} 32. Qd2 {[%emt 0:02:17]} fxg4 {[%emt 0:02:23]} 33. Rxe4 {[%emt 0:03:24]} Qxe4 {[%emt 0:00:15]} 34. Ng5 {[%emt 0:01:34]} Qe7 {[%emt 0:02:00]} 35. f4 {[%emt 0:00:55]} h6 {[%emt 0:00:38]} 36. Qxa5 {[%emt 0:01:15]} hxg5 {[%emt 0:00:18]} 37. fxg5 {[%emt 0:00:07]} Bxg5 {[%emt 0:01:00]} 38. Qc3+ {[%emt 0:00:26]} Qe5 {[%emt 0:01:07]} 39. Qd3 {[%emt 0:01:14]} Qe3+ {[%emt 0:00:20]} 40. Kg2 {[%emt 0:00:24]} Qxd3 {[%emt 0:00:32]} 41. exd3 {[%emt 0:30:09]} Kf6 {[%emt 0:30:39]} 42. a4 {[%emt 0:00:23]} Bd2 {[%emt 0:00:47]} 43. Kg3 {[%emt 0:00:10]} Kf5 {[%emt 0:00:18]} 44. d4 {[%emt 0:00:07]} Bc3 {[%emt 0:00:38]} 45. d5 {[%emt 0:00:05]} g5 {[%emt 0:00:53]} 46. Kf2 {[%emt 0:00:11]} Kf4 {[%emt 0:00:17]} 47. Kg2 {[%emt 0:00:05]} g3 {[%emt 0:00:16]} 48. Kf1 {[%emt 0:00:05]} Kf3 {[%emt 0:00:12]} 49. Kg1 {[%emt 0:00:04]} Bd4+ {[%emt 0:00:13]} 50. Kh1 {[%emt 0:00:09]} g2+ {[%emt 0:00:05]} 51. Kh2 {[%emt 0:00:03]} g1=Q+ {[%emt 0:00:09]} 52. Kh3 {[%emt 0:00:07]} Qg3# {[%emt 0:00:07]} 1/2-1/2

[Event "Czech Youth U16 Girls 2024"]
[Site "Kouty nad Desnou"]
[Date "2024.03.11"]
[Round "4.4"]
[White "Kaplanova, Dominika"]
[Black "Sikorova, Jana"]
[Result "1/2-1/2"]
[ECO "A50"]
[WhiteElo "1837"]
[BlackElo "1788"]
[Annotator "NA RC"]
[PlyCount "65"]
[EventDate "2024.03.10"]
[EventType "swiss"]
[EventCountry "CZE"]
[SourceTitle "playchess.com"]
[Source "ChessBase"]
[SourceQuality "1"]
[TimeControl "40/5400+30:1800+30"]

1. d4 {[%emt 0:00:17]} Nf6 {[%emt 0:00:13]} 2. c4 {[%emt 0:00:12]} b6 {[%emt 0:00:14]} 3. Nc3 {[%emt 0:00:38]} Bb7 {[%emt 0:00:17]} 4. Qc2 {[%emt 0:00:38]} d5 {[%emt 0:01:03]} 5. cxd5 {[%emt 0:00:51]} Nxd5 {[%emt 0:01:22]} 6. e4 {[%emt 0:01:19]} Nxc3 {[%emt 0:01:46]} 7. bxc3 {[%emt 0:00:21]} e6 {[%emt 0:01:57]} 8. Nf3 {[%emt 0:01:50]} c5 {[%emt 0:01:42]} 9. Bb5+ {[%emt 0:02:45]} Bc6 {[%emt 0:02:47]} 10. Bd3 {[%emt 0:01:11]} Nd7 {[%emt 0:02:58]} 11. O-O {[%emt 0:01:56]} Be7 {[%emt 0:03:45]} 12. Be3 {[%emt 0:03:55]} Qc7 {[%emt 0:03:16]} 13. Rac1 {[%emt 0:02:33]} Rc8 {[%emt 0:01:17]} 14. h3 {[%emt 0:02:45]} cxd4 {[%emt 0:03:07]} 15. cxd4 {[%emt 0:05:11]} Ba3 {[%emt 0:10:25]} 16. Ba6 {[%emt 0:28:02]} Bxc1 $18 {[%emt 0:08:21]} 17. Rxc1 {[%emt 0:13:54]} Rd8 {[%emt 0:03:44]} 18. Bb5 {[%emt 0:06:58]} O-O {[%emt 0:04:36]} 19. Qxc6 {[%emt 0:03:11]} Qxc6 {[%emt 0:01:09]} 20. Bxc6 {[%emt 0:00:39]} Nf6 {[%emt 0:02:21]} 21. Bd2 {[%emt 0:04:36]} Rc8 {[%emt 0:04:40]} 22. Ne5 {[%emt 0:01:57]} Rfd8 {[%emt 0:06:03]} 23. Bc3 {[%emt 0:01:36]} Rc7 {[%emt 0:03:29]} 24. f3 {[%emt 0:01:33]} Nh5 {[%emt 0:03:47]} 25. Bb2 {[%emt 0:03:01]} Nf4 {[%emt 0:02:27]} 26. Bb5 {[%emt 0:01:48]} Rxc1+ {[%emt 0:02:37]} 27. Bxc1 {[%emt 0:00:03]} Ng6 {[%emt 0:00:36]} 28. Nxg6 {[%emt 0:03:22]} hxg6 {[%emt 0:01:30]} 29. Bb2 {[%emt 0:00:48]} Kf8 {[%emt 0:01:35]} 30. Ba3+ {[%emt 0:00:49]} Kg8 {[%emt 0:00:09]} 31. Bb2 {[%emt 0:00:16]} Kf8 {[%emt 0:00:51]} 32. Ba3+ {[%emt 0:05:45]} Kg8 {[%emt 0:00:09]} 33. Bb2 {[%emt 0:00:49]} 1/2-1/2

[Event "Czech Youth U16 Girls 2024"]
[Site "Kouty nad Desnou"]
[Date "2024.03.11"]
[Round "4.5"]
[White "Dorazilova, Kristyna"]
[Black "Mikesova, Lenka"]
[Result "0-1"]
[ECO "C26"]
[WhiteElo "1722"]
[BlackElo "1665"]
[Annotator "NA RC"]
[PlyCount "106"]
[EventDate "2024.03.10"]
[EventType "swiss"]
[EventCountry "CZE"]
[SourceTitle "playchess.com"]
[Source "ChessBase"]
[SourceQuality "1"]
[TimeControl "40/5400+30:1800+30"]

1. e4 {[%emt 0:00:01]} e5 {[%emt 0:00:06]} 2. Nc3 {[%emt 0:00:06]} Nf6 {[%emt 0:00:41]} 3. g3 Nc6 {[%emt 0:01:13]} 4. Bg2 {[%emt 0:00:13]} Bc5 {[%emt 0:01:04]} 5. Nge2 {[%emt 0:00:12]} d6 {[%emt 0:01:43]} 6. Na4 {[%emt 0:00:08]} Bb6 {[%emt 0:01:16]} 7. Nxb6 {[%emt 0:00:16]} axb6 {[%emt 0:00:08]} 8. O-O {[%emt 0:01:03]} O-O {[%emt 0:01:34]} 9. h3 {[%emt 0:00:13]} Be6 {[%emt 0:02:18]} 10. a3 {[%emt 0:00:35]} Qd7 {[%emt 0:02:33]} 11. Kh2 {[%emt 0:00:11]} d5 {[%emt 0:00:44]} 12. d3 {[%emt 0:01:04]} dxe4 {[%emt 0:02:11]} 13. dxe4 {[%emt 0:00:01]} Rfd8 {[%emt 0:07:50]} 14. Qxd7 {[%emt 0:06:36]} Rxd7 {[%emt 0:00:28]} 15. Bg5 {[%emt 0:01:03]} Ne8 {[%emt 0:01:06]} 16. Rad1 {[%emt 0:00:20]} Rxd1 {[%emt 0:03:58]} 17. Rxd1 {[%emt 0:00:05]} f6 {[%emt 0:01:26]} 18. Be3 {[%emt 0:00:14]} Nd6 {[%emt 0:18:05]} 19. f4 {[%emt 0:09:55]} Nc4 {[%emt 0:11:16]} 20. Bc1 {[%emt 0:00:07]} Rd8 {[%emt 0:18:56]} 21. Rxd8+ {[%emt 0:02:31]} Nxd8 {[%emt 0:00:10]} 22. Nc3 {[%emt 0:01:23]} c6 {[%emt 0:02:15]} 23. b3 {[%emt 0:03:36]} Nd6 {[%emt 0:00:36]} 24. a4 {[%emt 0:00:40]} b5 {[%emt 0:03:23]} 25. Ba3 {[%emt 0:02:16]} bxa4 {[%emt 0:06:30]} 26. f5 {[%emt 0:09:52]} Bf7 {[%emt 0:02:08]} 27. Nxa4 {[%emt 0:00:39]} Nc8 {[%emt 0:02:00]} 28. Kg1 {[%emt 0:01:59]} b6 {[%emt 0:01:10]} 29. Kf2 {[%emt 0:01:23]} Nb7 {[%emt 0:01:59]} 30. Ke3 {[%emt 0:02:30]} b5 {[%emt 0:00:49]} 31. Nc5 {[%emt 0:00:39]} Ncd6 {[%emt 0:02:51]} 32. Kd3 {[%emt 0:01:42]} Nxc5+ {[%emt 0:00:39]} 33. Bxc5 {[%emt 0:00:19]} Nb7 {[%emt 0:00:05]} 34. Ba3 {[%emt 0:02:49]} c5 {[%emt 0:00:22]} 35. Bf1 {[%emt 0:00:31]} b4 {[%emt 0:01:03]} 36. Bc1 {[%emt 0:00:17]} Kf8 {[%emt 0:00:40]} 37. Be3 {[%emt 0:01:25]} Ke7 {[%emt 0:00:20]} 38. g4 {[%emt 0:01:34]} h6 {[%emt 0:01:55]} 39. Ke2 {[%emt 0:01:56]} Kd6 {[%emt 0:00:38]} 40. Kf3 {[%emt 0:00:17]} Na5 {[%emt 0:00:43]} 41. Bd3 {[%emt 0:31:56]} Nc6 {[%emt 0:31:29]} 42. h4 {[%emt 0:01:52]} Nd4+ {[%emt 0:00:00]} 43. Bxd4 {[%emt 0:00:00]} exd4 {[%emt 0:00:00]} 44. g5 {[%emt 0:00:00]} hxg5 {[%emt 0:00:00]} 45. hxg5 {[%emt 0:00:00]} Ke5 {[%emt 0:00:00]} 46. Bb5 {[%emt 0:00:00]} Bh5+ {[%emt 0:00:00]} 47. Kg3 {[%emt 0:00:00]} Kxe4 {[%emt 0:00:00]} 48. Bd3+ {[%emt 0:00:00]} Ke3 {[%emt 0:00:00]} 49. gxf6 {[%emt 0:00:00]} gxf6 {[%emt 0:00:00]} 50. Bc4 {[%emt 0:00:00]} Be2 {[%emt 0:00:00]} 51. Be6 {[%emt 0:00:00]} Bd1 {[%emt 0:00:00]} 52. Kh4 {[%emt 0:00:00]} Bxc2 {[%emt 0:00:00]} 53. Kh5 {[%emt 0:00:00]} d3 0-1